fUSD/lending_fUSD_20240214
["ID","MTS","AMOUNT","RATE_DAILY","PERIOD"]
[313986222,1707912640008,-155.0,0.00030008,2]
[313986223,1707912640017,-6088.62714513,0.00030414,4]
[313986224,1707912640030,-1515.87000003,0.00030414,4]
[313986225,1707912640064,-275.19,0.00030414,4]
[313986226,1707912640076,-431.00709111,0.00030414,4]
[313986227,1707912640126,-42953.31517649,0.00030414,4]
[313986228,1707912640815,-5013.65386892,0.00030414,4]
[313986229,1707912640829,-4102.32511909,0.00030416,2]
[313986230,1707912640839,-423.04,0.00030467,2]
[313986231,1707912640849,-154.08102145,0.00030519,2]
[313986232,1707912640859,-291.58189525,0.00030605,3]
[313986233,1707912640868,-199.84,0.00030707,2]
[313986234,1707912640880,-254.15818952,0.00030757,3]
[313986235,1707912640891,-229.90828826,0.00030757,3]
[313986236,1707912640904,-293.57212357,0.00030757,3]
[313986237,1707912640919,-159.30067541,0.00030757,3]
[313986238,1707912640930,-223.07121881,0.00030757,3]
[313986239,1707912640941,-380.97063139,0.00030757,3]
[313986240,1707912640953,-545.04058897,0.00030757,3]
[313986241,1707912640962,-1400.0,0.00031,3]
[313986242,1707912640972,-202.11,0.00031031,2]
[313986243,1707912640983,-652.48,0.00031429,2]
[313986244,1707912640998,-4102.32511909,0.00031536,2]
[313986245,1707912641008,-180.0,0.00031644,2]
[313986246,1707912641018,-4385.64208319,0.00032,2]
[313986247,1707912641028,-154.08102145,0.00032062,2]
[313986248,1707912641038,-423.04,0.00032111,2]
[313986249,1707912641048,-969.27668517,0.00032296,4]
[313986251,1707912641057,-177.3,0.000323,2]
[313986253,1707912641067,-4102.32511909,0.00032656,2]
[313986255,1707912641078,-177.3,0.00032848,2]
[313986257,1707912641087,-2500.0,0.00032876,2]
[313986259,1707912641096,-150.0,0.00032877,2]
[313986260,1707912641106,-207.0,0.00032956,9]
[313986261,1707912641131,-155.0,0.00032962,4]
[313986262,1707912641149,-157.58046542,0.00032963,4]
[313986263,1707912641163,-767.80874563,0.00033,4]
[313986264,1707912641175,-184.39,0.00033147,2]
[313986265,1707912641184,-16361.2903,0.00033193,2]
[313986266,1707912641194,-1146.9879,0.00033193,2]
[313986267,1707912641205,-269.258,0.00033198,2]
[313986268,1707912641217,-195.83898433,0.00033199,5]
[313986269,1707912641227,-1388.10559182,0.00033244,5]
[313986270,1707912641238,-170.76738279,0.00033286,2]
[313986271,1707912641250,-290.25040321,0.00033291,4]
[313986272,1707912641261,-4289.5561115,0.00033291,4]
[313986273,1707912641271,-475.34156007,0.00033291,4]
[313986274,1707912641281,-156.14746656,0.00033291,4]
[313986275,1707912641291,-156.35574996,0.00033291,4]
[313986276,1707912641300,-155.87246017,0.00033291,4]
[313986277,1707912641311,-401.81008,0.00033291,4]
[313986278,1707912641321,-370.75723679,0.00033291,4]
[313986279,1707912641331,-222.11815933,0.00033291,4]
[313986280,1707912641340,-155.0,0.00033291,4]
[313986281,1707912641349,-156.12636914,0.00033291,4]
[313986282,1707912641358,-1052.66597639,0.00033291,4]
[313986283,1707912641367,-644.14940004,0.00033291,4]
[313986284,1707912641376,-1375.07063722,0.00033291,4]
[313986285,1707912641385,-584.16439746,0.00033291,4]
[313986286,1707912641395,-188.68731154,0.00033291,4]
[313986287,1707912641404,-158.49370044,0.00033291,4]
[313986288,1707912641412,-286.61696954,0.00033291,4]
[313986289,1707912641422,-215.82244978,0.00033291,4]
[313986290,1707912641431,-1004.40670752,0.00033291,4]
[313986291,1707912641440,-260.19907905,0.00033291,4]
[313986292,1707912641450,-4379.8816483,0.00033291,4]
[313986293,1707912641461,-1111.12644229,0.00033291,4]
[313986294,1707912641471,-233.82550788,0.00033291,4]
[313986295,1707912641482,-158.30695886,0.00033291,4]
[313986296,1707912641493,-155.43271201,0.00033291,4]
[313986297,1707912641503,-2328.75332884,0.00033291,4]
[313986298,1707912641514,-517.91218452,0.00033291,4]
[313986299,1707912641525,-217.42528837,0.00033291,4]
[313986300,1707912641536,-888.76650924,0.00033292,4]
[313986301,1707912641546,-881.16568577,0.00033292,4]
[313986302,1707912641712,-155.0,0.00033292,4]
[313986303,1707912641724,-202.11,0.00033294,2]
[313986304,1707912641734,-703.34941955,0.00033295,15]
[313986305,1707912641745,-1261.63206498,0.00033295,4]
[313986306,1707912641756,-490.59306223,0.00033295,4]
[313986307,1707912641767,-155.0,0.00033295,4]
[313986308,1707912641778,-155.47323378,0.00033295,4]
[313986309,1707912641788,-311.50232895,0.00033296,4]
[313986310,1707912641798,-155.0,0.00033296,4]
[313986311,1707912641808,-2452.12707094,0.00033296,4]
[313986312,1707912641818,-43188.07171326,0.00033296,4]
[313986313,1707912641834,-155.42573272,0.00033296,4]
[313986314,1707912641843,-204.78663029,0.00033296,4]
[313986315,1707912641853,-4450.55945013,0.00033296,4]
[313986316,1707912641862,-420.14684856,0.00033296,4]
[313986317,1707912641878,-286.61939797,0.00033296,4]
[313986318,1707912641887,-193.31935566,0.00033296,4]
[313986319,1707912641896,-245.41926485,0.00033296,4]
[313986320,1707912641906,-199.47251247,0.00033296,4]
[313986321,1707912641917,-191.73170434,0.00033296,4]
[313986322,1707912641928,-155.76670024,0.00033296,4]
[313986323,1707912641937,-698.41762816,0.00033296,4]
[313986324,1707912641947,-163.31220385,0.00033296,4]
[313986325,1707912641956,-343.24758046,0.00033296,4]
[313986326,1707912641965,-7431.86390348,0.00033296,4]
[313986327,1707912641974,-155.0,0.00033296,4]
[313986328,1707912641982,-1179.77337866,0.00033296,4]
[313986329,1707912641991,-10537.74486602,0.00033297,4]
[313986330,1707912642000,-155.0,0.00033298,4]
[313986331,1707912642009,-155.0,0.00033298,4]
[313986332,1707912642018,-2349.06275973,0.00033298,4]
[313986333,1707912642028,-567.99743166,0.00033298,4]
[313986334,1707912642037,-9777.55421977,0.000333,3]
[313986335,1707912642050,-8282.88,0.000333,3]
[313986336,1707912642061,-772.58430032,0.000333,3]
[313986337,1707912642090,-346.83,0.000333,3]
[313986344,1707912643879,-1661.60734328,0.000333,3]
[313986345,1707912643899,-4397.10680013,0.000333,3]
[313986346,1707912643928,-5675.58508379,0.000333,3]
[313986347,1707912643947,-6001.47073487,0.000333,3]
[313986348,1707912643997,-78696.26881452,0.000333,3]
[313986349,1707912644186,-12835.66327547,0.000333,3]
[313986350,1707912644201,-347.52,0.00033344,2]
[313986351,1707912644216,-177.3,0.00033396,2]
[313986352,1707912644230,-154.08102145,0.00033605,2]
[313986353,1707912644246,-1388.10559179,0.000337,5]
[313986354,1707912644260,-150.0,0.00033742,2]
[313986355,1707912644277,-423.04,0.00033755,2]
[313986356,1707912644292,-4102.32511909,0.00033776,2]
[313986357,1707912644307,-151.22241652,0.000339,2]
[313986359,1707912644321,-267.48535073,0.00033944,2]
[313986360,1707912644337,-1826.57,0.00034048,5]
[313986363,1707912644351,-1388.10559179,0.00034155,6]
[313986365,1707912644365,-1779.37,0.00034346,5]
[313986366,1707912644379,-150.0,0.000344,2]
[313986367,1707912644394,-172.36,0.00034521,2]
[313986368,1707912644409,-150.0,0.00034607,2]
[313986369,1707912644641,-1388.10559179,0.00034611,7]
[313986370,1707912644674,-4102.32511909,0.00034896,2]
[313986371,1707912644685,-2273.96492948,0.000349,2]
[313986372,1707912644695,-2273.96492938,0.000349,2]
[313986373,1707912644704,-150.1,0.000349,3]
[313986374,1707912644713,-652.48,0.00034921,2]
[313986375,1707912644722,-155.0,0.00035,4]
[313986376,1707912644732,-221.56319813,0.00035,30]
[313986377,1707912644741,-430.88941674,0.00035,5]
[313986378,1707912644751,-47779.60812853,0.00035,4]
[313986379,1707912644760,-436.01862455,0.00035,4]
[313986380,1707912644769,-228.65418055,0.00035,7]
[313986381,1707912644779,-155.0,0.00035,2]
[313986382,1707912644788,-250.0,0.00035,120]
[313986383,1707912644797,-1388.10559179,0.00035067,7]
[313986384,1707912644806,-154.08102145,0.00035148,2]
[313986385,1707912644815,-423.04,0.00035399,2]
[313986386,1707912644824,-150.0,0.00035472,2]
[313986387,1707912644834,-1388.10559179,0.00035522,8]
[313986388,1707912644842,-202.11,0.00035558,2]
[313986389,1707912644851,-1000.0,0.000356,2]
[313986390,1707912644861,-666.0,0.00035616,2]
[313986391,1707912644870,-906.62551554,0.00035616,2]
[313986392,1707912644885,-55900.15718271,0.000358,3]
[313986393,1707912644894,-564.43430621,0.00035878,2]
[313986394,1707912644903,-1388.10559179,0.00035978,8]
[313986395,1707912644912,-5000.0,0.0003598,2]
[313986396,1707912644924,-155.0,0.00036,4]
[313986397,1707912644934,-250.0,0.00036,120]
[313986398,1707912644943,-4102.32511909,0.00036016,2]
[313986399,1707912644952,-150.0,0.00036337,2]
[313986400,1707912644962,-2273.96492938,0.00036358,2]
[313986401,1707912644971,-1388.10559179,0.00036433,9]
[313986402,1707912644980,-347.52,0.00036678,2]
[313986403,1707912644989,-150.0,0.0003669,2]
[313986404,1707912644999,-154.08102145,0.0003669,2]
[313986405,1707912645008,-1327.99302944,0.00036702,9]
[313986406,1707912645017,-207.0,0.0003682,16]
[313986407,1707912645026,-1388.10559179,0.00036889,9]
[313986408,1707912645036,-100000.0,0.00037,17]
[313986409,1707912645044,-312.12631658,0.00037,4]
[313986410,1707912645054,-250.0,0.00037,120]
[313986411,1707912645063,-4102.32511909,0.00037136,2]
[313986412,1707912645073,-48678.0,0.00037137,20]
[313986413,1707912645084,-150.0,0.00037203,2]
[313986414,1707912645093,-1000.0,0.0003734,5]
[313986415,1707912645101,-1000.0,0.0003734,5]
[313986416,1707912645111,-1000.0,0.0003734,5]
[313986417,1707912645120,-1000.0,0.0003734,5]
[313986418,1707912645129,-1000.0,0.0003734,5]
[313986419,1707912645139,-1000.0,0.0003734,5]
[313986421,1707912645148,-1000.0,0.0003734,5]
[313986422,1707912645157,-1000.0,0.0003734,5]
[313986423,1707912645166,-1000.0,0.0003734,5]
[313986424,1707912645175,-1000.0,0.0003734,5]
[313986425,1707912645185,-1000.0,0.0003734,5]
[313986426,1707912645194,-1000.0,0.0003734,5]
[313986427,1707912645203,-1000.0,0.0003734,5]
[313986428,1707912645212,-1000.0,0.0003734,5]
[313986429,1707912645222,-1000.0,0.0003734,5]
[313986430,1707912645231,-1000.0,0.0003734,5]
[313986431,1707912645241,-1000.0,0.0003734,5]
[313986432,1707912645251,-1000.0,0.0003734,5]
[313986433,1707912645260,-768.89191327,0.0003734,5]
[313986434,1707912645270,-1388.10559179,0.00037345,10]
[313986435,1707912645280,-1786.32,0.0003747,5]
[313986436,1707912645290,-64269.54,0.00037508,5]
[313986437,1707912645299,-13362.06,0.00037508,5]
[313986438,1707912645308,-72039.28339202,0.00037508,5]
[313986439,1707912645322,-37114.50660798,0.00037508,5]
[313986440,1707912645331,-34653.19,0.00037508,5]
[313986441,1707912645341,-23824.47,0.00037508,5]
[313986442,1707912645350,-55257.96,0.00037508,5]
[313986443,1707912645360,-5491.97,0.00037508,5]
[313986444,1707912645369,-52674.4,0.00037508,5]
[313986445,1707912645379,-61239.78,0.00037508,5]
[313986446,1707912645389,-48678.0,0.0003752,20]
[313986447,1707912645398,-666.0,0.00037671,2]
[313986448,1707912645408,-4130.33977139,0.00037683,10]
[313986449,1707912645418,-17652.89234841,0.00037693,5]
[313986450,1707912645428,-535.26626025,0.00037702,5]
[313986451,1707912645438,-1890.12419633,0.00037702,5]
[313986452,1707912645448,-930.38215465,0.00037702,5]
[313986453,1707912645458,-564.22474307,0.00037702,5]
[313986454,1707912645468,-17904.10462077,0.00037702,5]
[313986455,1707912645478,-4704.22030888,0.00037702,2]
[313986456,1707912645489,-934.35783415,0.00037702,4]
[313986457,1707912645499,-231.61462882,0.00037702,5]
[313986458,1707912645509,-155.55300653,0.00037702,2]
[313986459,1707912645519,-24714.43310725,0.00037702,5]
[313986460,1707912645528,-333.81441791,0.00037702,5]
[313986461,1707912645538,-387.90268592,0.00037702,2]
[313986462,1707912645548,-150.0,0.00037702,30]
[313986463,1707912645557,-1790.37,0.00037712,5]
[313986464,1707912645567,-411.66,0.00037719,2]
[313986465,1707912645577,-1637.0,0.0003779,2]
[313986466,1707912645587,-675.0,0.0003779,2]
[313986467,1707912645596,-4130.33977139,0.00037798,10]
[313986468,1707912645605,-407.02476847,0.00037799,2]
[313986469,1707912645614,-480.01510405,0.00037799,2]
[313986470,1707912645624,-3452.87578648,0.00037799,2]
[313986471,1707912645633,-1176.33048303,0.00037799,2]
[313986472,1707912645642,-158.93406877,0.00037799,2]
[313986473,1707912645652,-686.62,0.000378,30]
[313986474,1707912645661,-686.62,0.000378,2]
[313986475,1707912645671,-1388.10559179,0.000378,11]
[313986476,1707912645681,-287.799664,0.00037808,14]
[313986477,1707912645690,-202.11,0.00037822,2]
[313986478,1707912645700,-1803.53,0.00037852,5]
[313986479,1707912645722,-61955.0965708,0.00037888,10]
[313986480,1707912645732,-78476.4556564,0.00037889,10]
[313986481,1707912645743,-61955.0965708,0.00037889,10]
[313986482,1707912645753,-170.76738279,0.00037889,2]
[313986483,1707912645763,-743.0,0.0003789,2]
[313986484,1707912645773,-170.76738279,0.0003789,2]
[313986485,1707912645783,-301.0,0.0003789,2]
[313986486,1707912645794,-130413.6,0.00037898,2]
[313986487,1707912645805,-159394.4,0.00037899,2]
[313986488,1707912645815,-2967.27245018,0.00037899,3]
[313986489,1707912645829,-23919.12,0.00037899,3]
[313986490,1707912646468,-1203.1949099,0.00028176,2]
[313986491,1707912646478,-4549.44867989,0.00037888,2]
[313986492,1707912646490,-306.21779093,0.00037888,2]
[313986504,1707912646607,-104085.28875253,0.00037888,2]
[313986516,1707912646715,-35773.62752816,0.00037888,2]
[313986519,1707912646728,-19542.16403704,0.00037888,2]
[313986521,1707912646741,-13595.8815,0.00037888,2]
[313986523,1707912646754,-28697.5,0.00037888,2]
[313986526,1707912646766,-449.7275107,0.00037888,2]
[313986530,1707912646800,-367.13751538,0.00037888,2]
[313986533,1707912646818,-100595.64245954,0.00037888,2]
[313986536,1707912646830,-141066.26422583,0.00037888,2]
[313986538,1707912646841,-102148.41543267,0.00037888,2]
[313986574,1707913604100,-176.01178568,0.00024999,2]
[313986575,1707913631085,-3.57101432,0.00024999,2]
[313986576,1707913631105,-162.90719702,0.00025099,2]
[313986577,1707913643093,-1250.6468713,0.00025099,2]
[313986587,1707913755213,-154.08102145,0.00025,2]
[313986588,1707913755237,-4341.21584095,0.00025099,2]
[313986589,1707913765101,-5890.8632,0.00025099,2]
[313986590,1707913766095,-22594.469,0.00025099,2]
[313986591,1707913767086,-13355.33726377,0.00025099,2]
[313986592,1707913772089,-22604.222,0.00025099,2]
[313986593,1707913772119,-12915.12839228,0.00025099,2]
[313986594,1707913772139,-3654.54460772,0.000251,2]
[313986608,1707913831628,-207.0,0.00025093,2]
[313986609,1707913831638,-1023.17297282,0.000251,2]
[313986610,1707913831719,-11763.28241946,0.000251,2]
[313986611,1707913831729,-9763.75567666,0.0002848,7]
[313986612,1707913831739,-14591.69305053,0.0002848,7]
[313986613,1707913831749,-2168.75727851,0.0002848,7]
[313986614,1707913831759,-176.56149042,0.000298,2]
[313986615,1707913831768,-155.0,0.0003,2]
[313986616,1707913831778,-207.0,0.0003008,10]
[313986617,1707913831788,-611.16819222,0.00030756,3]
[313986618,1707913831800,-185.24809654,0.00030756,3]
[313986619,1707913831809,-216.18788463,0.00030756,3]
[313986620,1707913831819,-178.9229953,0.00030756,3]
[313986621,1707913831829,-191.24849474,0.00030756,3]
[313986622,1707913831839,-19878.69,0.00030937,2]
[313986623,1707913831848,-11868.17,0.00030937,2]
[313986624,1707913831858,-1339.21,0.00030937,2]
[313986625,1707913831868,-9999.99,0.00030937,2]
[313986626,1707913831878,-504.79,0.00030937,2]
[313986627,1707913831888,-177.1,0.00031513,2]
[313986628,1707913831899,-150.0,0.00031921,7]
[313986629,1707913831909,-2060.05,0.00032661,5]
[313986630,1707913831918,-150.0,0.00033026,2]
[313986631,1707913831928,-1744.82,0.00033026,2]
[313986632,1707913831938,-431.14,0.00033026,2]
[313986633,1707913831947,-160.71,0.000335,2]
[313986634,1707913831957,-160.71,0.000335,2]
[313986635,1707913831967,-160.71,0.000335,2]
[313986636,1707913831977,-160.71,0.000335,2]
[313986637,1707913831986,-160.71,0.000335,2]
[313986638,1707913831996,-160.71,0.000335,2]
[313986639,1707913832006,-160.71,0.000335,2]
[313986640,1707913832016,-160.71,0.000335,2]
[313986641,1707913832026,-160.71,0.000335,2]
[313986642,1707913832035,-160.71,0.000335,2]
[313986643,1707913832045,-160.71,0.000335,2]
[313986644,1707913832055,-160.71,0.000335,2]
[313986645,1707913832065,-160.71,0.000335,2]
[313986646,1707913832075,-160.71,0.000335,2]
[313986647,1707913832086,-160.71,0.000335,2]
[313986648,1707913832097,-160.71,0.000335,2]
[313986649,1707913832110,-160.71,0.000335,2]
[313986650,1707913832123,-160.71,0.000335,2]
[313986651,1707913832133,-160.71,0.000335,2]
[313986652,1707913832151,-160.71,0.000335,2]
[313986653,1707913832172,-177.1,0.00033777,2]
[313986654,1707913832196,-250.0,0.00033793,2]
[313986655,1707913832217,-180.33,0.00033854,2]
[313986656,1707913832229,-150.0,0.00033908,2]
[313986657,1707913832252,-250.0,0.00034,111]
[313986658,1707913832271,-2000.0,0.00034,2]
[313986659,1707913832281,-3978.26109635,0.00034024,2]
[313986660,1707913833073,-514.921608,0.00034024,2]
[313986668,1707913833566,-527.71452051,0.00034024,2]
[313986669,1707913833589,-673.23529726,0.00034024,2]
[313986670,1707913833601,-401.82437314,0.00034024,2]
[313986671,1707913833613,-17804.04310474,0.00034024,2]
[313986672,1707913833622,-250.0,0.00034063,2]
[313986673,1707913833632,-2000.0,0.0003407,2]
[313986674,1707913833641,-360.22491493,0.00034099,2]
[313986675,1707913833650,-572.78,0.00034101,2]
[313986676,1707913833659,-173.77,0.00034136,2]
[313986677,1707913833668,-158.02,0.00034297,2]
[313986678,1707913833677,-150.0,0.000344,2]
[313986679,1707913833686,-2615.913948,0.0003452,2]
[313986680,1707913833696,-118.03994411,0.00034521,2]
[313986681,1707913837541,-599.98005589,0.00034521,2]
[313986682,1707913837550,-88.51994411,0.00034648,2]
[313986683,1707913837561,-489.75005589,0.00034648,2]
[313986684,1707913837570,-930.49,0.00034711,2]
[313986685,1707913837579,-150.0,0.0003479,2]
[313986686,1707913837589,-3923.870923,0.00034794,2]
[313986687,1707913837598,-160.71,0.000349,2]
[313986688,1707913837607,-160.71,0.000349,2]
[313986689,1707913837617,-160.71,0.000349,2]
[313986690,1707913837626,-160.71,0.000349,2]
[313986691,1707913837636,-160.71,0.000349,2]
[313986692,1707913837645,-160.71,0.000349,2]
[313986693,1707913837655,-160.71,0.000349,2]
[313986694,1707913837665,-160.71,0.000349,2]
[313986695,1707913837674,-160.71,0.000349,2]
[313986696,1707913837683,-160.71,0.000349,2]
[313986697,1707913837692,-160.71,0.000349,2]
[313986698,1707913837701,-160.71,0.000349,2]
[313986699,1707913837711,-160.71,0.000349,2]
[313986700,1707913837720,-160.71,0.000349,2]
[313986701,1707913837729,-160.71,0.000349,2]
[313986702,1707913837739,-160.71,0.000349,2]
[313986703,1707913837749,-160.71,0.000349,2]
[313986704,1707913837758,-160.71,0.000349,2]
[313986705,1707913837768,-160.71,0.000349,2]
[313986706,1707913837778,-160.71,0.000349,2]
[313986707,1707913837787,-3065.16528035,0.00034931,2]
[313986708,1707913837808,-544.38170658,0.00034931,2]
[313986709,1707913837832,-1622.28091007,0.00034931,2]
[313986710,1707913837841,-338.18356879,0.00035,30]
[313986711,1707913837851,-436.01862455,0.00035,4]
[313986712,1707913837861,-228.65418055,0.00035065,7]
[313986713,1707913837871,-207.0,0.00035066,18]
[313986714,1707913837880,-6539.784872,0.00035068,2]
[313986715,1707913837889,-9155.698821,0.00035342,2]
[313986716,1707913837899,-56805.99224835,0.00035411,3]
[313986717,1707913837912,-1194.00775165,0.00035411,3]
[313986718,1707913837921,-309.23758659,0.00035572,7]
[313986719,1707913837932,-490.22748584,0.00035572,7]
[313986720,1707913837942,-1792.66,0.00035591,5]
[313986721,1707913837952,-150.0,0.00035672,2]
[313986722,1707913837961,-718.02,0.00035798,2]
[313986723,1707913837971,-799.46507236,0.00035955,7]
[313986724,1707913837981,-2908.86060595,0.0003598,2]
[313986725,1707913838040,-2091.13939405,0.0003598,2]
[313986726,1707913838049,-261.30398966,0.00036,4]
[313986727,1707913838059,-1816.94,0.00036024,5]
[313986728,1707913838068,-177.1,0.00036041,2]
[313986729,1707913838077,-160.71,0.000363,3]
[313986730,1707913838086,-160.71,0.000363,3]
[313986731,1707913838096,-160.71,0.000363,3]
[313986732,1707913838105,-160.71,0.000363,3]
[313986733,1707913838114,-160.71,0.000363,3]
[313986734,1707913838125,-160.71,0.000363,3]
[313986735,1707913838134,-160.71,0.000363,3]
[313986736,1707913838143,-160.71,0.000363,3]
[313986737,1707913838153,-160.71,0.000363,3]
[313986738,1707913838163,-160.71,0.000363,3]
[313986739,1707913838172,-160.71,0.000363,3]
[313986740,1707913838182,-160.71,0.000363,3]
[313986741,1707913838191,-160.71,0.000363,3]
[313986742,1707913838201,-160.71,0.000363,3]
[313986743,1707913838211,-160.71,0.000363,3]
[313986744,1707913838221,-160.71,0.000363,3]
[313986745,1707913838230,-160.71,0.000363,3]
[313986746,1707913838239,-160.71,0.000363,3]
[313986747,1707913838248,-160.71,0.000363,3]
[313986748,1707913838258,-160.71,0.000363,3]
[313986749,1707913838443,-799.46507236,0.00036339,7]
[313986750,1707913838454,-1802.51,0.00036516,5]
[313986751,1707913838463,-150.0,0.00036555,2]
[313986752,1707913838473,-180.33,0.00036594,2]
[313986753,1707913838481,-799.46507236,0.00036722,8]
[313986754,1707913838491,-9447.1017249,0.0003689,10]
[313986755,1707913838501,-500.0,0.00036899,2]
[313986756,1707913838510,-500.0,0.00036899,2]
[313986757,1707913838519,-500.0,0.00036899,2]
[313986758,1707913838529,-500.0,0.00036899,2]
[313986759,1707913838539,-12052.5881,0.000369,2]
[313986760,1707913838548,-300.0,0.000369,5]
[313986761,1707913838557,-43400.57995644,0.0003699,10]
[313986762,1707913838570,-32176.23384276,0.0003699,10]
[313986763,1707913838579,-71447.76615728,0.00037,17]
[313986764,1707913838599,-28552.23384272,0.00037,17]
[313986765,1707913838608,-312.12631658,0.00037056,4]
[313986766,1707913838618,-16707.49532041,0.00037057,4]
[313986767,1707913838629,-23810.73802994,0.00037057,4]
[313986768,1707913838672,-17662.11948537,0.00037057,4]
[313986769,1707913838681,-3149.0339083,0.00037059,10]
[313986770,1707913838690,-718.02,0.00037075,2]
[313986771,1707913838699,-799.46507236,0.00037106,8]
[313986772,1707913838708,-281.80782244,0.00037136,5]
[313986773,1707913838718,-180.0,0.0003726,2]
[313986774,1707913838727,-29148.06922014,0.00037287,20]
[313986775,1707913839029,-3312.79492608,0.00037287,20]
[313986785,1707913840162,-5610.39032302,0.00037287,20]
[313986786,1707913840292,-8505.74553076,0.00037287,20]
[313986787,1707913840301,-150.0,0.00037315,2]
[313986788,1707913840312,-150.0,0.00037437,2]
[313986789,1707913840321,-1475.68505186,0.00037439,2]
[313986790,1707913840331,-3149.0339083,0.00037454,10]
[313986791,1707913840340,-150.0,0.00037474,2]
[313986792,1707913840350,-799.46507236,0.00037489,8]
[313986793,1707913840360,-212.19,0.00037534,2]
[313986794,1707913840370,-422.25,0.00037534,2]
[313986795,1707913840379,-150.0,0.00037534,2]
[313986796,1707913840389,-343.2,0.00037534,2]
[313986797,1707913840398,-150.0,0.00037534,2]
[313986798,1707913840409,-422.25,0.00037534,2]
[313986799,1707913840418,-343.2,0.00037534,2]
[313986800,1707913840428,-150.0,0.00037534,2]
[313986801,1707913840437,-150.0,0.00037534,2]
[313986802,1707913840446,-422.25,0.00037534,2]
[313986803,1707913840456,-150.0,0.00037534,2]
[313986804,1707913840465,-343.2,0.00037534,2]
[313986805,1707913840474,-150.0,0.00037534,2]
[313986806,1707913840484,-343.2,0.00037534,2]
[313986807,1707913840493,-422.25,0.00037534,2]
[313986808,1707913840503,-343.2,0.00037534,2]
[313986809,1707913840513,-150.0,0.00037534,2]
[313986810,1707913840523,-420.39,0.00037534,2]
[313986811,1707913840533,-242.48,0.00037534,2]
[313986812,1707913840543,-355.41,0.00037534,2]
[313986813,1707913840553,-150.0,0.00037558,2]
[313986814,1707913840563,-150.0,0.00037575,2]
[313986815,1707913840573,-1475.68505186,0.00037582,2]
[313986816,1707913840583,-3149.0339083,0.0003759,10]
[313986817,1707913840594,-160.71,0.000376,3]
[313986818,1707913840604,-160.71,0.000376,3]
[313986819,1707913840614,-160.71,0.000376,3]
[313986820,1707913840625,-160.71,0.000376,3]
[313986821,1707913840636,-160.71,0.000376,3]
[313986822,1707913840645,-160.71,0.000376,3]
[313986823,1707913840655,-160.71,0.000376,3]
[313986824,1707913840668,-160.71,0.000376,3]
[313986825,1707913840677,-160.71,0.000376,3]
[313986826,1707913840687,-160.71,0.000376,3]
[313986827,1707913840696,-160.71,0.000376,3]
[313986828,1707913840706,-160.71,0.000376,3]
[313986829,1707913840716,-160.71,0.000376,3]
[313986830,1707913840725,-160.71,0.000376,3]
[313986831,1707913840735,-160.71,0.000376,3]
[313986832,1707913840744,-160.71,0.000376,3]
[313986833,1707913840754,-160.71,0.000376,3]
[313986834,1707913840763,-160.71,0.000376,3]
[313986835,1707913840773,-160.71,0.000376,3]
[313986836,1707913840783,-160.71,0.000376,3]
[313986837,1707913840793,-13899.04,0.00037631,5]
[313986838,1707913840802,-9655.82082614,0.00037631,5]
[313986839,1707913840814,-300.0,0.00037631,5]
[313986840,1707913840826,-551.45936331,0.00037631,5]
[313986841,1707913840838,-824.1117,0.00037631,5]
[313986845,1707913841265,-337.26811055,0.00037631,5]
[313986846,1707913841275,-1040.01188944,0.00037672,20]
[313986847,1707913841405,-259.41654144,0.00037672,20]
[313986848,1707913841420,-558.59855038,0.00037672,20]
[313986849,1707913841431,-2585.85,0.00037672,20]